Cogmind - Beta 16.1 @@@ ROGUE MODE // 2026.04.08 @ 21:25:30 Player: microsand Result: Destroyed by P-70 Sage with Tesla Rifle Performance ------------- Evolutions (6) 3000 Regions Visited (9) 1800 Robots Destroyed (67) 335 Value Destroyed (1521) 1521 Prototype IDs (16) 320 Alien Tech Used (0) 0 Bonus (300) 300 TOTAL SCORE: 7276 Bonus ------- Registered with UFD 300 Cogmind --------- Core Integrity 0/1150 Matter 171/300 Energy 99/100 System Corruption 9% Temperature Cool (0) Movement Core (50) Location -4/Factory Parts ------- > --- POWER (2) -------- (None) > --- PROPULSION (4) --- (None) > --- UTILITY (9) ------ (None) > --- WEAPON (4) ------- (None) > --- INVENTORY (5) ---- Light Angular Momentum Engine Drone Bay (1/2) Heavy Shock Bomb Launcher Peak State ------------ > --- POWER ------------ Improved Ion Engine Light Deuterium Engine > --- PROPULSION ------- Light Treads Light Treads Improved Treads Advanced Treads > --- UTILITY ---------- Improved Cryofiber Web High-capacity Storage Unit 0b10 Decoder Chip [Looter] Hardened Light Armor Plating Remote Shield > --- WEAPON ----------- Beam Rifle Beam Rifle Cooled Phase Gun Plasma Cannon > --- INVENTORY -------- Light Ion Engine Light Treads Visual Processing Unit Force Booster Weapon Shielding Drone Bay Improved Light Cannon [Rating: 47] Favorites ----------- Power Improved Ion Engine Engine Improved Ion Engine Propulsion Light Treads Treads Light Treads Utility Drone Bay Device Drone Bay Storage High-capacity Storage Unit Processor Visual Processing Unit Protection Hardened Light Armor Plating Weapon Beam Rifle Energy Gun Beam Rifle Energy Cannon Heavy Phase Cannon Ballistic Gun Light Assault Rifle Ballistic Cannon Improved Light Cannon Launcher Heavy Missile Launcher Build | -11 -10 -9 -9 -9 -9 -6 -6 -5 -4 ------- Run | Yrd Mat Mat Sto Rec Scr Fac Low Fac Fac Slots Evolved 12 | . . 2 . . . 6 . 2 2 Power 1 | . . . . . . 1 . . . Propulsion 2 | . . . . . . 2 . . . Utility 7 | . . 1 . . . 2 . 2 2 Weapon 2 | . . 1 . . . 1 . . . Parts Attached 47 | 8 4 8 1 2 4 11 1 7 1 Power 7 | 2 1 1 . . 1 2 . . . Engine 7 | 2 1 1 . . 1 2 . . . Core . | . . . . . . . . . . Reactor . | . . . . . . . . . . Propulsion 7 | 2 . 2 . . 2 1 . . . Treads 7 | 2 . 2 . . 2 1 . . . Leg . | . . . . . . . . . . Wheel . | . . . . . . . . . . Hover . | . . . . . . . . . . Flight . | . . . . . . . . . . Utility 18 | 2 1 2 1 1 1 4 . 5 1 Device 8 | 1 . 1 1 . . 3 . 2 . Storage 2 | 1 . . . . 1 . . . . Processor 4 | . . . . . . 1 . 2 1 Hackware . | . . . . . . . . . . Protection 4 | . 1 1 . 1 . . . 1 . Artifact . | . . . . . . . . . . Weapon 15 | 2 2 3 . 1 . 4 1 2 . Energy Gun 6 | . 2 2 . 1 . 1 . . . Energy Cannon 2 | . . . . . . 1 . 1 . Ballistic Gun 2 | 2 . . . . . . . . . Ballistic Cannon 2 | . . 1 . . . . . 1 . Launcher 3 | . . . . . . 2 1 . . Special Weapon . | . . . . . . . . . . Impact Weapon . | . . . . . . . . . . Slashing Weapon . | . . . . . . . . . . Piercing Weapon . | . . . . . . . . . . Special Melee Weapon . | . . . . . . . . . . Unidentified Prototypes 2 | . . . . . . 2 . . . Parts Lost 28 | . 1 1 . 1 . 18 . 5 2 Power 5 | . 1 . . . . 4 . . . Propulsion 6 | . . 1 . . . 4 . 1 . Utility 6 | . . . . . . 3 . 3 . Weapon 11 | . . . . 1 . 7 . 1 2 Highest Loss Streak 15 | . 1 1 . 1 . 15 . 3 2 To Critical Strikes 2 | . . . . . . . . . 2 Average Backups 5 | 2 5 4 5 4 7 6 4 1 2 Power . | 1 2 1 1 1 1 . . . 1 Propulsion 1 | 1 2 1 2 2 2 1 . . . Utility 2 | . 1 1 2 1 4 3 4 1 1 Weapon . | . . . . . . . . . . Tool/Special . | . . . . . . . . . . Unused Backups 11 | 3 2 3 . . 1 . . . 2 Power 2 | . 1 . . . . . . . 1 Propulsion 6 | 3 . 2 . . 1 . . . . Utility . | . . . . . . . . . . Weapon 3 | . 1 1 . . . . . . 1 Tool/Special . | . . . . . . . . . . Average Slot Usage (%) 80 | . 98 99 100 99 100 82 6 35 17 Engine 8 | . 12 11 11 11 11 10 . . . Treads 17 | . 28 21 22 22 22 22 3 . . Device 13 | . 13 21 22 22 12 8 . 10 3 Storage 4 | . 14 . . . 9 5 . . . Processor 2 | . . . . . . 5 . 9 7 Protection 7 | . . 11 11 11 11 4 . 3 . Energy Gun 15 | . 1 22 22 29 22 14 . . . Energy Cannon 1 | . . . . . . 4 . 2 3 Ballistic Gun 2 | . 26 . . . . . . . . Ballistic Cannon 6 | . . 10 11 3 11 2 . 4 3 Peak Build Rating 47 | 7 8 16 20 20 24 47 6 33 29 Average Rating 19 | 4 7 12 19 19 21 35 3 22 16 On Entrance 12 | . 7 7 16 20 20 24 1 6 24 Avg Prop Armor Cover (%) . | . . . . . . . . . . Naked Turns 427 | . . . . . . 65 154 23 185 Heaviest Build 82 | 14 14 26 31 31 68 82 7 30 20 Greatest Support 85 | 40 40 40 40 40 45 85 20 20 3 Greatest Overweight (x) 15 | . . . . . 1 15 . 9 6 Average Overweight (x) . | . . . . . . . . 4 1 Largest Inventory Capacity 20 | 8 8 8 5 5 20 20 5 5 5 Average Capacity 10 | 5 8 5 5 5 18 18 5 5 5 Most Carried 10 | 5 8 6 5 5 10 9 5 5 3 Average Carried 5 | 2 5 4 5 4 7 6 4 1 2 Final Capacity 20 | 8 8 5 5 5 20 5 5 5 5 Final Carried 10 | 4 7 5 5 5 10 5 4 2 3 Class Distribution -------------------- 49% | Scavenger-Tank 33% | Mutant 16% | Tank Dominant Class ---------------- Mutant | -10/Materials Tank | -9/Materials Scavenger-Tank | -9/Storage Scavenger-Tank | -9/Recycling Scavenger-Tank | -9/Scraptown Scavenger-Tank | -6/Factory Mutant | -6/Lower Caves Mutant | -5/Factory Mutant | -4/Factory Resources | -11 -10 -9 -9 -9 -9 -6 -6 -5 -4 ----------- Run | Yrd Mat Mat Sto Rec Scr Fac Low Fac Fac Matter Collected 1088 | 181 217 225 136 49 30 104 144 2 . Remotely . | . . . . . . . . . . Salvage Created 1895 | 130 263 434 363 158 . 442 61 44 . Parts 138 | 13 31 38 17 8 . 23 6 2 . Haulers Intercepted . | . . . . . . . . . . Recyclers Shooed . | . . . . . . . . . . Parts Field Recycled . | . . . . . . . . . . Retrieved Matter . | . . . . . . . . . . Parts Self-Destructed 8 | . . . . . . . 8 . . Prevented 4 | . . . . . . . 4 . . Parts Restored . | . . . . . . . . . . Kills | -11 -10 -9 -9 -9 -9 -6 -6 -5 -4 ------- Run | Yrd Mat Mat Sto Rec Scr Fac Low Fac Fac Combat Hostiles Destroyed 48 | . 11 15 6 3 . 8 4 1 . Guns 26 | . 11 6 5 3 . 1 . . . Cannons 13 | . . 9 1 . . 2 . 1 . AOE 9 | . . . . . . 5 4 . . Classes Destroyed 10 | 2 3 3 . . . 2 . . . Worker 5 | . 1 . . . . 4 . . . Builder 2 | . . 1 1 . . . . . . Tunneler 4 | 3 . . . . . . . 1 . Recycler 5 | 1 . 1 2 . . 1 . . . Watcher 3 | . . 1 1 . . 1 . . . Swarmer 29 | . 8 10 3 . . 4 4 . . Grunt 8 | . 3 2 2 . . 1 . . . Sentry 7 | . . 3 1 3 . . . . . Hunter 2 | . . . . . . 2 . . . Programmer 2 | . . . . . . 1 . 1 . Best Kill Streak 8 | 4 5 8 8 1 . 5 4 1 . Combat Bots Only 7 | . 5 7 4 1 . 4 4 1 . Max Kills in Single Turn 4 | 1 2 2 2 1 . 4 4 1 . Gunslinging . | . . . . . . . . . . Exploded 4 | . . . . . . 3 4 . . Melee . | . . . . . . . . . . Uniques/NPCs Destroyed . | . . . . . . . . . . Combat | -11 -10 -9 -9 -9 -9 -6 -6 -5 -4 -------- Run | Yrd Mat Mat Sto Rec Scr Fac Low Fac Fac Hostile Shots Fired 475 | . 68 37 16 6 . 168 6 49 125 Missed 147 | . 21 8 . 2 . 48 1 17 50 Hits 328 | . 47 29 16 4 . 120 5 32 75 Projectile 328 | . 47 29 16 4 . 120 5 32 75 Critical Strikes 13 | . . . . . . 1 . 8 4 Damage Taken 4932 | . 427 254 171 55 . 2022 110 691 1202 Core 2098 | . 51 33 25 . . 668 29 127 1165 Absorbed by Shields 61 | . . . . . . 61 . . . Redirected to Shielding 71 | . 11 31 . . . . . 29 . Core Remaining (%) 73 | 100 79 . . . 85 . 18 87 . Volleys Fired 102 | 7 32 22 12 5 . 14 2 8 . Largest 4 | 2 2 3 3 3 . 4 1 2 . Hottest 270 | 40 40 129 145 168 . 270 39 137 . Shots Fired 235 | 14 64 56 36 15 . 36 2 12 . Gun 172 | 14 64 34 24 14 . 22 . . . Cannon 56 | . . 22 12 1 . 11 . 10 . Launcher 7 | . . . . . . 3 2 2 . Special . | . . . . . . . . . . Kinetic 121 | 14 64 22 12 1 . 2 . 6 . Thermal 107 | . . 34 24 14 . 31 . 4 . Explosive 7 | . . . . . . 3 2 2 . Electromagnetic . | . . . . . . . . . . Robot Hit Streak 16 | 5 16 8 11 14 . 8 1 4 . Robot Miss Streak 5 | 1 5 4 2 . . 5 1 2 . Penetration Max . | . . . . . . . . . . Secondary Targets 2 | . 2 . . . . . . . . Max Gunslinging Chain 1 | . 1 . . . . . . . . Shots Hit Robots 145 | 9 38 34 20 12 . 24 1 7 . Core Hits 109 | 5 18 24 13 6 . 35 4 4 . Critical Kills . | . . . . . . . . . . Critical Parts Destroyed . | . . . . . . . . . . Critical Strikes 10 | . . 1 2 2 . 3 . 2 . Burn 6 | . . . 1 2 . 3 . . . Blast 4 | . . 1 1 . . . . 2 . Melee Attacks . | . . . . . . . . . . Impact . | . . . . . . . . . . Slashing . | . . . . . . . . . . Piercing . | . . . . . . . . . . Sneak Attacks . | . . . . . . . . . . Combat Hostiles . | . . . . . . . . . . Follow-up Attacks . | . . . . . . . . . . Damage Inflicted 3456 | 92 402 570 358 175 . 1225 281 342 11 Guns 1463 | 92 402 271 232 175 . 291 . . . Cannons 922 | . . 299 126 . . 219 . 278 . Explosions 1053 | . . . . . . 715 281 57 . Melee . | . . . . . . . . . . Ramming 18 | . . . . . . . . 7 11 Kinetic 1130 | 92 402 299 126 . . 19 . 192 . Thermal 1255 | . . 271 232 175 . 491 . 86 . Explosive 989 | . . . . . . 651 281 57 . Electromagnetic 64 | . . . . . . 64 . . . Impact . | . . . . . . . . . . Slashing . | . . . . . . . . . . Piercing . | . . . . . . . . . . Highest Corruption 8 | . . . 1 1 . 1 1 8 8 Average Corruption 1 | . . . 1 1 . 1 1 1 3 Corruption Purged . | . . . . . . . . . . Corruption Blocked . | . . . . . . . . . . Effects 15 | . . . 1 4 . . 4 5 1 Message Errors 2 | . . . . . . . . 1 1 Matter Fused 3 | . . . 1 1 . . 1 . . Heat Flow Errors 2 | . . . . . . . . 2 . Energy Discharges 3 | . . . . . . . 2 1 . Data Loss (minor) 3 | . . . . 1 . . 1 1 . Data Loss (major) 1 | . . . . 1 . . . . . Misfires 1 | . . . . 1 . . . . . Overload Shots 1 | . . . . . . 1 . . . Overflow Damage 46 | . . . . . . 16 . 30 . Projectiles 25 | . . . . . . 1 . 24 . Explosions 21 | . . . . . . 15 . 6 . Melee . | . . . . . . . . . . Knockbacks 3 | . . 2 . . . . . 1 . Impact . | . . . . . . . . . . Kinetic 2 | . . 1 . . . . . 1 . Secondary 1 | . . 1 . . . . . . . Self-Inflicted Damage 305 | . . . . . . 212 39 49 5 Shots 10 | . . . . . . 8 1 1 . Rammed 5 | . . . . . . . . 1 4 Targets Rammed 5 | . . . . . . . . 1 4 Kicked . | . . . . . . . . . . Crushed . | . . . . . . . . . . Highest Temperature 226 | . 15 60 218 177 . 184 . 226 . Average Temperature 67 | . 7 19 86 78 . 82 . 64 . Received Heat Transfer 262 | . 81 30 48 18 . 40 . . 45 Siege Activations . | . . . . . . . . . . Martial Activations . | . . . . . . . . . . Shielding Activations . | . . . . . . . . . . Robots Disrupted . | . . . . . . . . . . Combat Hostiles . | . . . . . . . . . . Robots Corrupted . | . . . . . . . . . . Combat Hostiles . | . . . . . . . . . . Parts Fried . | . . . . . . . . . . Impact Corruptions . | . . . . . . . . . . Robots Melted . | . . . . . . . . . . Combat Hostiles . | . . . . . . . . . . Parts Melted 6 | . . 1 3 2 . . . . . Heat Transferred 3207 | . . 624 666 592 . 1251 . 74 . Parts Sabotaged . | . . . . . . . . . . Parts Stolen . | . . . . . . . . . . Parts Stripped . | . . . . . . . . . . Power Chain Reactions . | . . . . . . . . . . Alert | -11 -10 -9 -9 -9 -9 -6 -6 -5 -4 ------- Run | Yrd Mat Mat Sto Rec Scr Fac Low Fac Fac Maximum Alert Level 1 | . . 1 . . . 1 . . . Low Security (%) 93 | 100 100 57 100 100 . 93 . 100 100 Level 1 6 | . . 42 . . . 7 . . . Level 2 . | . . . . . . . . . . Level 3 . | . . . . . . . . . . Level 4 . | . . . . . . . . . . Level 5 . | . . . . . . . . . . High Security . | . . . . . . . . . . Max Security . | . . . . . . . . . . Peak Influence 268 | 15 120 256 134 68 . 268 . 82 63 Initial 82 | . . 35 69 48 . . . 82 . Average 41 | 1 52 166 42 7 . 24 . 18 7 Influence Increases 1653 | 20 273 403 177 60 . 402 140 73 105 Destroy 0b10 Robot/C 1000 | . 220 300 120 60 . 160 120 20 . Destroy 0b10 Robot/NC 95 | 20 5 15 20 . . 30 . 5 . Destroy Leader 206 | . 30 72 32 . . 42 20 10 . Successful Hack 24 | . 18 . . . . 6 . . . Disable Machine 105 | . . . . . . 105 . . . Destroy Structure 88 | . . 1 5 . . 44 . 38 . Partial Spotted 15 | . . . . . . 15 . . . Lose Combat Pursuer 120 | . . 15 . . . . . . 105 Influence Decreases 1598 | 20 189 322 218 184 . 143 267 205 50 Entered New Map 368 | . . 49 96 76 . . 97 50 . Time Decay 1109 | 20 179 263 122 108 . 62 170 135 50 Lost Part 121 | . 10 10 . . . 81 . 20 . Squads Dispatched 15 | . . . 4 . . 3 . 4 4 Investigation 1 | . . . 1 . . . . . . Extermination 4 | . . . . . . 1 . 1 2 Reinforcement 5 | . . . 1 . . 2 . . 2 Assault . | . . . . . . . . . . Garrison 5 | . . . 2 . . . . 3 . Intercept . | . . . . . . . . . . Searches Triggered . | . . . . . . . . . . Construction Impeded 1 | . . . . . . 1 . . . Haulers Reinforced 1 | . . . . . . 1 . . . Active Scanning Responses . | . . . . . . . . . . Cargo Convoy Interrupts . | . . . . . . . . . . Stealth | -11 -10 -9 -9 -9 -9 -6 -6 -5 -4 --------- Run | Yrd Mat Mat Sto Rec Scr Fac Low Fac Fac Distress Signals 4 | . 2 1 . . . . . . 1 Communications Jammed . | . . . . . . . . . . Distress Signals . | . . . . . . . . . . Times Spotted 85 | . 17 18 7 2 . 14 4 3 20 Peak Tracking Total 12 | . 7 7 4 1 . 6 4 2 12 Tactical Retreats 4 | . . 1 . . . . . . 3 Traps | -11 -10 -9 -9 -9 -9 -6 -6 -5 -4 ------- Run | Yrd Mat Mat Sto Rec Scr Fac Low Fac Fac Traps Triggered 1 | . . . . . . . . . 1 Indirectly . | . . . . . . . . . . Trap Hack Attempts . | . . . . . . . . . . Triggered . | . . . . . . . . . . Disarmed . | . . . . . . . . . . Reprogrammed . | . . . . . . . . . . Reused . | . . . . . . . . . . Traps Extracted . | . . . . . . . . . . Installed . | . . . . . . . . . . Triggered . | . . . . . . . . . . Machines | -11 -10 -9 -9 -9 -9 -6 -6 -5 -4 ---------- Run | Yrd Mat Mat Sto Rec Scr Fac Low Fac Fac Machines Disabled 7 | . . . . . . 7 . . . Max in Single Turn 6 | . . . . . . 6 . . . Machines Repaired . | . . . . . . . . . . Machines Dismantled . | . . . . . . . . . . Machines Sabotaged . | . . . . . . . . . . Overloaded Fab Kills . | . . . . . . . . . . Hacking | -11 -10 -9 -9 -9 -9 -6 -6 -5 -4 --------- Run | Yrd Mat Mat Sto Rec Scr Fac Low Fac Fac Machines Accessed 13 | . 4 . 2 . 2 2 2 1 . Terminals 6 | . 4 . 1 . . 1 . . . Fabricators 1 | . . . . . . 1 . . . Repair Stations . | . . . . . . . . . . Recycling Units . | . . . . . . . . . . Scanalyzers . | . . . . . . . . . . Garrison Access 2 | . . . 1 . . . . 1 . Total Hacks 34 | . 16 . 3 . 4 4 5 2 . Successful 17 | . 5 . 1 . 4 2 5 . . Failed 17 | . 11 . 2 . . 2 . 2 . Catastrophic 4 | . 1 . 1 . . 2 . . . Database Lockouts . | . . . . . . . . . . Manual 19 | . 16 . 1 . . 2 . . . Terminals 20 | . 16 . 1 . . 3 . . . Fabricators 1 | . . . . . . 1 . . . Repair Stations . | . . . . . . . . . . Recycling Units . | . . . . . . . . . . Scanalyzers . | . . . . . . . . . . Garrison Access 4 | . . . 2 . . . . 2 . Terminal Hacks 13 | . 2 . 1 . 4 1 5 . . Record 7 | . . . . . 3 . 4 . . Robot Schematic 1 | . . . . . . 1 . . . Open Door 2 | . . . 1 . . . 1 . . Emergency Access Points 1 | . 1 . . . . . . . . Terminal Index 1 | . 1 . . . . . . . . Proto ID Catalog 1 | . . . . . 1 . . . . Fabricator Hacks 1 | . . . . . . 1 . . . Load Schematic 1 | . . . . . . 1 . . . Repair Station Hacks . | . . . . . . . . . . Recycling Unit Hacks . | . . . . . . . . . . Scanalyzer . | . . . . . . . . . . Garrison Access Hacks . | . . . . . . . . . . Unauthorized Hacks 3 | . 3 . . . . . . . . Terminals 3 | . 3 . . . . . . . . Botnet 3 | . 3 . . . . . . . . Fabricators . | . . . . . . . . . . Repair Stations . | . . . . . . . . . . Recycling Units . | . . . . . . . . . . Scanalyzers . | . . . . . . . . . . Garrison Access . | . . . . . . . . . . Data Cores Recovered . | . . . . . . . . . . Used . | . . . . . . . . . . Hacking Detections 6 | . 3 . 1 . . 1 . 1 . Full Trace Events 1 | . . . 1 . . . . . . Feedback Events 1 | . . . 1 . . . . . . Corruption 1 | . . . 1 . . . . . . Feedback Blocked . | . . . . . . . . . . Robot Schematics Acquired 1 | . . . . . . 1 . . . Robots Built . | . . . . . . . . . . Authchips . | . . . . . . . . . . Time . | . . . . . . . . . . Total Robot Build Rating . | . . . . . . . . . . Part Schematics Acquired . | . . . . . . . . . . Parts Built . | . . . . . . . . . . Authchips . | . . . . . . . . . . Time . | . . . . . . . . . . Total Part Build Rating . | . . . . . . . . . . Part Studies Acquired . | . . . . . . . . . . Parts Repaired . | . . . . . . . . . . Time . | . . . . . . . . . . Parts Recycled . | . . . . . . . . . . Recycled Matter . | . . . . . . . . . . Retrieved Matter . | . . . . . . . . . . Retrieved Components . | . . . . . . . . . . Parts Scanalyzed . | . . . . . . . . . . Part Schematics Acquired . | . . . . . . . . . . Parts Damaged . | . . . . . . . . . . Bothacking | -11 -10 -9 -9 -9 -9 -6 -6 -5 -4 ------------ Run | Yrd Mat Mat Sto Rec Scr Fac Low Fac Fac Used RIF Installer . | . . . . . . . . . . Robots Hacked . | . . . . . . . . . . Non-combat . | . . . . . . . . . . Combat . | . . . . . . . . . . Robot Hacks Applied . | . . . . . . . . . . Relay Couplers Released . | . . . . . . . . . . Fabnet Peak Effective % . | . . . . . . . . . . Robots Rewired . | . . . . . . . . . . Allies Hacked . | . . . . . . . . . . Hacks Repelled . | . . . . . . . . . . Allies | -11 -10 -9 -9 -9 -9 -6 -6 -5 -4 -------- Run | Yrd Mat Mat Sto Rec Scr Fac Low Fac Fac Total Allies 1 | . . . . . . . 1 . . Largest Group 1 | . . . . . . . 1 . . Highest-Rated Group 146 | . . . . . . . 146 . . Highest-Rated Ally 146 | . . . . . . . 146 . . Initial UFD Resources 30 | . . . . . . 24 24 28 30 Total Orders 5 | . . . 2 3 . . . . . ROAM 1 | . . . 1 . . . . . . EXPLORE 3 | . . . 1 2 . . . . . RETURN 1 | . . . . 1 . . . . . Ally Attacks 4 | . . . . . . . 4 . . Total Damage 302 | . . . . . . . 302 . . Kills 2 | . . . . . . . 2 . . Allies Corrupted . | . . . . . . . . . . Allies Melted . | . . . . . . . . . . Intel | -11 -10 -9 -9 -9 -9 -6 -6 -5 -4 ------- Run | Yrd Mat Mat Sto Rec Scr Fac Low Fac Fac Active Infowar (turns) 2940 | 35 507 607 72 . . 793 . 624 302 Optics 926 | . . . . . . . . 624 302 Seismic 1221 | 35 507 607 72 . . . . . . Decoding 793 | . . . . . . 793 . . . Jamming 12 | . . . . . . . . 12 . Robot Analysis Total . | . . . . . . . . . . Derelict Logs Recovered 1 | . . . . . . . 1 . . Drone Launches 8 | . . . 5 3 . . . . . Drone Recoveries 7 | . . . 5 2 . . . . . Decoded 0b10 Intel 58 | . . . . . . 58 . . . Items 58 | . . . . . . 58 . . . Exploration | -11 -10 -9 -9 -9 -9 -6 -6 -5 -4 ------------- Run | Yrd Mat Mat Sto Rec Scr Fac Low Fac Fac Turns Passed 7200 | 145 540 608 437 824 2181 900 341 737 487 Spaces Moved 3501 | 75 267 224 105 288 974 492 420 210 446 Core 1065 | 16 . . . . . 132 307 164 446 Treads 2436 | 59 267 224 105 288 974 360 113 46 . Legs . | . . . . . . . . . . Wheels . | . . . . . . . . . . Hover . | . . . . . . . . . . Flight . | . . . . . . . . . . Fastest Speed 50 | 50 160 160 160 160 160 50 50 50 50 Average Speed 165 | 136 160 160 160 160 222 135 79 308 107 Slowest Speed 800 | 160 160 160 160 160 240 800 160 500 350 Overloaded Moves . | . . . . . . . . . . Propulsion Burnouts . | . . . . . . . . . . Robots Hopped . | . . . . . . . . . . Potential Cave-ins . | . . . . . . . . . . Cave-ins Triggered . | . . . . . . . . . . Exploration Rate (%) 35 | 4 48 15 25 99 70 16 59 6 12 Regions Visited 9 Branch Regions 4 Pre-discovered Areas . | . . . . . . . . . . Known Exits Taken 1 | . . . . . . . . 1 . Unknown Exits Taken 8 | 1 1 1 1 1 1 1 1 . . Scrap Searched 5 | . . . . . 4 . 1 . . Spaces Dug . | . . . . . . . . . . Terrain Destroyed 91 | . . . 3 . . 42 28 18 . Melee . | . . . . . . . . . . Projectile 8 | . . . 3 . . 1 . 4 . AOE 83 | . . . . . . 41 28 14 . Terrain Rammed . | . . . . . . . . . . Walls Destroyed . | . . . . . . . . . . Machines Disabled . | . . . . . . . . . . Actions | -11 -10 -9 -9 -9 -9 -6 -6 -5 -4 --------- Run | Yrd Mat Mat Sto Rec Scr Fac Low Fac Fac Total 4701 | 106 323 433 348 640 988 695 424 289 455 Wait 946 | . 10 150 227 340 . 161 . 57 1 Move 3492 | 74 266 223 104 287 973 491 419 209 446 Hop . | . . . . . . . . . . Pick Up 60 | 14 7 13 2 2 8 5 1 6 2 Fast Attach 3 | . . . . 1 . 2 . . . Attach 39 | 7 1 4 . 1 1 14 2 8 1 Detach 4 | . . . . . . 4 . . . Swap 21 | 1 4 9 1 2 3 1 . . . Drop 29 | 3 3 12 2 2 3 3 . . 1 Fire 102 | 7 32 22 12 5 . 14 2 8 . Melee . | . . . . . . . . . . Ram 5 | . . . . . . . . 1 4 Kick . | . . . . . . . . . . Crush . | . . . . . . . . . . Escape Stasis . | . . . . . . . . . . Rewire . | . . . . . . . . . . Trap . | . . . . . . . . . . Miscellaneous . | . . . . . . . . . . Route ------- -11/Scrapyard -10/Materials (discovered 2 exits: [*Mat] / [*Min]) -9/Materials -9/Storage -9/Recycling (discovered 2 exits: [*Fac] / *Scr) -9/Scraptown -6/Factory -6/Lower Caves -5/Factory -4/Factory History --------- Turn | Location | Event 8 | -11/Scrapyard | Discovered new exit (range 15) 146 | -11/Scrapyard | Entered Materials 302 | -10/Materials | Build established: Mutant 456 | -10/Materials | Discovered new exit (range 10) 623 | -10/Materials | Discovered new exit (range 15) 686 | -10/Materials | Entered another Materials area 686 | -9/Materials | Evolved 2 slots: Utility x1, Weapon x1 828 | -9/Materials | Destroyed 7 combat bots 1001 | -9/Materials | Build established: Tank 1241 | -9/Materials | Discovered new exit (range 4) 1294 | -9/Materials | Entered Storage 1303 | -9/Storage | Build established: Scavenger-Tank 1617 | -9/Storage | Garrison activated, responded to threat 1727 | -9/Storage | Used back door to open Recycling access 1727 | -9/Storage | Discovered new exit (range 4) 1731 | -9/Storage | Entered Recycling 1876 | -9/Recycling | Discovered new exit (range 88) 2510 | -9/Recycling | Scanned before Scraplab entrance 2534 | -9/Recycling | Entered Scraplab 2549 | -9/Recycling | Discovered new exit (range 4) 2555 | -9/Recycling | Entered Scraptown 2555 | -9/Scraptown | System corruption cleaned by C-Scrubber 2887 | -9/Scraptown | Heard Great Nut preacher, LISTEN AND RECITE! 3156 | -9/Scraptown | Visited Spacefarers 3237 | -9/Scraptown | Visited TADAMA 3271 | -9/Scraptown | Visited UFD Registry 3271 | -9/Scraptown | Registered with UFD as "Matrixflow" 3355 | -9/Scraptown | Visited Botcube Research 3379 | -9/Scraptown | Found Botcube 3469 | -9/Scraptown | Visited Science Guys 3575 | -9/Scraptown | Visited Scrap Suit Storage 3628 | -9/Scraptown | Visited Derelict Rescue Squad 3728 | -9/Scraptown | Visited Infowarlord's Domain 3801 | -9/Scraptown | Visited Junk Repository 4140 | -9/Scraptown | Build established: Tank 4211 | -9/Scraptown | Visited Curators Association 4304 | -9/Scraptown | Visited Abandonware Association 4341 | -9/Scraptown | Learned abandonware demo "REPAIR.EXE" 4694 | -9/Scraptown | Discovered new exit (range 5) 4736 | -9/Scraptown | Entered Factory 4736 | -6/Factory | Evolved 6 slots: Power x1, Propulsion x2, Utility x2, Weapon x1 5040 | -6/Factory | Build established: Scavenger-Tank 5537 | -6/Factory | Found Prototype Launcher 5537 | -6/Factory | Identified Rocket Array 5548 | -6/Factory | Found Rocket Array 5562 | -6/Factory | Lost 15 parts (3p4n3u5w) 5567 | -6/Factory | Core integrity fell below 50% 5599 | -6/Factory | Lost 3 parts (1p2w) 5629 | -6/Factory | Discovered new exit (range 14) 5636 | -6/Factory | Entered Lower Caves 5676 | -6/Lower Caves | Entered an active Warlord outpost 5685 | -6/Lower Caves | Learned Research terminal intel 5765 | -6/Lower Caves | Encountered a Warlord checkpoint 5769 | -6/Lower Caves | Learned Factory emergency access door positions 5785 | -6/Lower Caves | Build established: Mutant 5809 | -6/Lower Caves | Core integrity fell below 20% 5844 | -6/Lower Caves | NK-0LA showed up to help 5940 | -6/Lower Caves | NK-0LA revealed a hidden path 5977 | -6/Lower Caves | Entered Factory 5977 | -5/Factory | Evolved 2 slots: Utility x2 6051 | -5/Factory | Garrison activated, responded to threat 6320 | -5/Factory | Discovered new exit (range 16) 6390 | -5/Factory | Identified exit to Factory 6714 | -5/Factory | Entered another Factory area 6714 | -4/Factory | Evolved 2 slots: Utility x2 6744 | -4/Factory | Lost 3 parts (3u) 7016 | -4/Factory | Released all parts (3) 7088 | -4/Factory | Spotted B-86 Titan 7164 | -4/Factory | Core integrity fell below 50% 7196 | -4/Factory | Core integrity fell below 20% 7201 | -4/Factory | Destroyed by P-70 Sage with Tesla Rifle Last Messages --------------- 07092_ Slug penetrates Wall. 07136_ O-32 Director: "IFF HANDSHAKE FAILED. SECURING TERMINAL." 07137_ Drone sends a signal. 07140_ O-32 Director sends out distress signal. 07144_ ALERT: Hostiles spotted, dispatching reinforcements to Terminal F007. 07168_ Penetrated by Slug. 07171_ Slug penetrates Wall. 07178_ ALERT: Potential suspicious activity detected, Programmers report to Factory Zone 9V. 07185_ ALERT: Suspicious intruders detected, dispatching Cutter reinforcements to area. 07188_ Penetrated by Slug. 07188_ Slug penetrates Wall. 07193_ IN7GWV37VZWD8%G2XIIVDANI7M Z 07194_ Slammed into P-70 Sage. 07196_ Destabilizing: System corrupted (+2). 07197_ Slammed into P-70 Sage. Map ----- +----------------------------------------------------+ | ?????????????????????????????????????????????????? | | ?????????????????????????????????????????????????? | | ?????????????????????????????????????????????????? | | ?????????????????????????????????????????????????? | | ?????????????????????????????????????????????????? | | ?????????????????????????????????????????????????? | | ?????????????????????????????????????????????????? | | ?????????????????????????????????????????????????? | | ?????????????????????????????????????????????????? | | ?????????????????????????????????????????????????? | | ?????????????????????????????????????????????????? | | ?????????????????????????????????????????????????? | | ?????????????????????????????????????????????????? | | ?????????????????????????????????????????????????? | | ?????????????????????????????????????????????????? | | ?????????????????????????????????????????????????? | | ?????????????????????????????????????????????????? | | ?????????????????????????????????????????????????? | | ?????????????????????????????????????????????????? | | ?????????????????????????????????????????????????? | | ?????????????????????????????????????????????????? | | ???????????????????????########??????????????????? | | ???????????????????????+ ???????????????????? | | ???????????????????????# #????????????????????? | | ???????????????????????# #????????????????????? | | ???????????????????????# @ +????????????????????? | | ???????????????????????# #????????????????????? | | ???????????????????????# #????????????????????? | | ???????????????????????# #????????????????????? | | ???????????????????????# #????????????????????? | | ???????????????????????# p #????????????????????? | | ???????????????????????#ps #????????????????????? | | ???????????????????????#s####????????????????????? | | ???????????????????????#s#???????????????????????? | | ???????????????????????#p#???????????????????????? | | ???????????????????????#s#???????????????????????? | | ???????????????????????#s#???????????????????????? | | ???????????????????????#p#???????????????????????? | | ???????????????????????# #???????????????????????? | | ???????????????????????# #???????????????????????? | | ???????????????????????# #???????????????????????? | | ??????????????########?# #???????????????????????? | | ??????????????# #?# #???????????????????????? | | ??????????????# #?# #???????????????????????? | | ??????????????# #?# #???????????????????????? | | ??????????????# ### ###?????????????????????? | | ??????????????# # #?##+##???????????????? | | ??????????????# """" # ### #???????????????? | | ??????????????# """" + " " ???????????????? | | ??????????????# """" # ### ##??????????????? | +----------------------------------------------------+ Best States ------------- Heat Dissipation 43 Energy Generation 21 Energy Capacity 305 Matter Stores 300 Matter Capacity 300 Sight Range 18 Terrain Scan Density 10 Jamming Range 14 Base Temperature (-) 150 Armor Coverage 225 Propulsion Shielding 33 Weapon Shielding 33 Evasion (%) 50 Recoil Reduction 4 Force Boost 20 Item Schematics ----------------- None Robot Schematics ------------------ H-55 Commando | -6/Factory | Hacked Fabricated ------------ Nothing Repaired ---------- Nothing Studied --------- None Alien Tech Used ----------------- None Achievements -------------- Decoder Ring Challenges ------------ None Game ------ Seed AntisysGuidanceParser Manual? 0 Play Time 00:40:58 Cumulative 28.4 hours Start 2026.04.08 @ 20:39:11 End 2026.04.08 @ 21:25:30 Sessions 1 Manual Loads 0 Difficulty Rogue Special Mode None Game No. 76 Rogue 76 Adventurer 0 Explorer 0 Win Type - Total 1 Types 1/0/0/0/0/0/0/0/0/0 Lore% 38 Gallery% 30 Achievement% 24 Wizard Run 0 Options --------- Layout 1 ASCII 0 Keyboard 0 Movement Numpad Keybinds 0 Fullscreen 2 Font 24/Terminus Map View 50x35 Zoom Use 0% Tactical HUD 1 Map Filters NONE Filters NONE Steam 1 RUN: b2eafee7-1ad4-4a41-9ef5-0463556c5ff7